fUST/lending_fUST_20241205
["ID","MTS","AMOUNT","RATE_DAILY","PERIOD"]
[344327326,1733346643045,-500.0,0.00025205,7]
[344327327,1733346643055,-933.52,0.00025205,7]
[344327328,1733346643065,-894.4,0.00025205,7]
[344327329,1733346643075,-500.0,0.00025205,7]
[344327330,1733346643084,-500.0,0.00025205,7]
[344327331,1733346643094,-500.0,0.00025205,7]
[344327332,1733346643103,-500.0,0.00025205,7]
[344327333,1733346643113,-500.0,0.00025205,7]
[344327334,1733346643122,-500.0,0.00025205,7]
[344327335,1733346643131,-500.0,0.00025205,7]
[344327336,1733346643141,-500.0,0.00025205,7]
[344327337,1733346643150,-151.0,0.00025205,7]
[344327338,1733346643160,-500.0,0.00025205,7]
[344327339,1733346643170,-151.0,0.00025205,7]
[344327340,1733346643179,-155.075881,0.00025205,7]
[344327341,1733346643188,-530.74,0.00025205,7]
[344327342,1733346643198,-155.075881,0.00025205,7]
[344327343,1733346643207,-500.0,0.00025205,7]
[344327344,1733346643217,-297.15125188,0.00025205,7]
[344327345,1733346643227,-500.0,0.00025205,7]
[344327346,1733346643241,-500.0,0.00025205,7]
[344327347,1733346643251,-614.53,0.00025205,7]
[344327348,1733346643261,-500.0,0.00025205,7]
[344327349,1733346643271,-500.0,0.00025205,7]
[344327350,1733346643280,-200.0,0.00025205,7]
[344327351,1733346643290,-500.0,0.00025205,7]
[344327352,1733346643299,-500.0,0.00025205,7]
[344327354,1733346643309,-619.85,0.00025205,7]
[344327355,1733346643318,-500.0,0.00025205,7]
[344327356,1733346643328,-151.0,0.00025205,7]
[344327357,1733346643337,-151.0,0.00025205,7]
[344327358,1733346643347,-1534.56,0.00025205,7]
[344327359,1733346643356,-657.02,0.00025205,7]
[344327361,1733346643365,-494.44814492,0.00025205,7]
[344327363,1733346643374,-391.43768,0.00025205,7]
[344327364,1733346643384,-560.397085,0.00025205,7]
[344327365,1733346643393,-391.43768,0.00025205,7]
[344327366,1733346643402,-560.397085,0.00025205,7]
[344327367,1733346643412,-500.0,0.00025205,7]
[344327369,1733346643421,-500.0,0.00025205,7]
[344327371,1733346643430,-543.58,0.00025205,7]
[344327373,1733346643440,-500.0,0.00025205,7]
[344327375,1733346643450,-500.0,0.00025205,7]
[344327377,1733346643460,-819.96,0.00025205,7]
[344327378,1733346643469,-500.0,0.00025205,7]
[344327380,1733346643478,-553.14,0.00025205,7]
[344327382,1733346643492,-392.0110519,0.00025205,7]
[344327384,1733346643501,-689.42,0.00025205,7]
[344327386,1733346643511,-500.0,0.00025205,7]
[344327388,1733346643521,-500.0,0.00025205,7]
[344327389,1733346643531,-500.0,0.00025205,7]
[344327391,1733346643541,-500.0,0.00025205,7]
[344327393,1733346643551,-500.0,0.00025205,7]
[344327395,1733346643560,-500.0,0.00025205,7]
[344327396,1733346643570,-500.0,0.00025205,7]
[344327397,1733346643580,-500.0,0.00025205,7]
[344327398,1733346643589,-500.0,0.00025205,7]
[344327399,1733346643599,-500.0,0.00025205,7]
[344327400,1733346643609,-500.0,0.00025205,7]
[344327401,1733346643618,-500.0,0.00025205,7]
[344327402,1733346643628,-500.0,0.00025205,7]
[344327403,1733346643637,-500.0,0.00025205,7]
[344327405,1733346643647,-500.0,0.00025205,7]
[344327407,1733346643657,-1059.594498,0.00025205,7]
[344327408,1733346643666,-500.0,0.00025205,7]
[344327409,1733346643676,-500.0,0.00025205,7]
[344327410,1733346643686,-1059.594498,0.00025205,7]
[344327411,1733346643696,-500.0,0.00025205,7]
[344327412,1733346643708,-1348.776728,0.00025205,7]
[344327413,1733346643718,-500.0,0.00025205,7]
[344327415,1733346643728,-1348.776728,0.00025205,7]
[344327417,1733346643744,-952.87,0.00025205,7]
[344327418,1733346643753,-500.0,0.00025205,7]
[344327419,1733346643762,-500.0,0.00025205,7]
[344327420,1733346643772,-500.0,0.00025205,7]
[344327422,1733346643783,-299.363235,0.00025205,7]
[344327423,1733346643792,-500.0,0.00025205,7]
[344327424,1733346643802,-299.363235,0.00025205,7]
[344327425,1733346643812,-500.0,0.00025205,7]
[344327426,1733346643821,-500.0,0.00025205,7]
[344327427,1733346643830,-500.0,0.00025205,7]
[344327428,1733346643840,-500.0,0.00025205,7]
[344327429,1733346643850,-180.31161249,0.00025205,7]
[344327430,1733346643860,-500.0,0.00025205,7]
[344327431,1733346643870,-500.0,0.00025205,7]
[344327432,1733346643880,-333.758566,0.00025205,7]
[344327433,1733346643889,-333.758566,0.00025205,7]
[344327434,1733346643899,-333.758566,0.00025205,7]
[344327435,1733346643909,-333.758566,0.00025205,7]
[344327436,1733346643918,-574.26,0.00025205,7]
[344327437,1733346643928,-500.0,0.00025205,7]
[344327438,1733346643938,-4805.61,0.00025205,7]
[344327439,1733346643947,-500.0,0.00025205,7]
[344327440,1733346643958,-500.0,0.00025205,7]
[344327441,1733346643967,-500.0,0.00025205,7]
[344327442,1733346643976,-1364.96,0.00025205,7]
[344327443,1733346643988,-500.0,0.00025205,7]
[344327444,1733346643999,-1957.68,0.00025205,7]
[344327445,1733346644008,-500.0,0.00025205,7]
[344327446,1733346644018,-500.0,0.00025205,7]
[344327447,1733346644027,-500.0,0.00025205,7]
[344327448,1733346644036,-3027.51,0.00025205,7]
[344327450,1733346644045,-492.5675988,0.00025205,7]
[344327452,1733346644054,-500.0,0.00025205,7]
[344327454,1733346644064,-500.0,0.00025205,7]
[344327456,1733346644073,-500.0,0.00025205,7]
[344327458,1733346644083,-151.0,0.00025205,7]
[344327460,1733346644093,-695.26,0.00025205,7]
[344327462,1733346644103,-500.0,0.00025205,7]
[344327464,1733346644112,-500.0,0.00025205,7]
[344327466,1733346644121,-500.0,0.00025205,7]
[344327468,1733346644131,-500.0,0.00025205,7]
[344327470,1733346644139,-700.25,0.00025205,7]
[344327472,1733346644149,-633.52337674,0.00025205,7]
[344327474,1733346644159,-1192.1,0.00025205,7]
[344327475,1733346644168,-500.0,0.00025205,7]
[344327478,1733346644177,-500.0,0.00025205,7]
[344327480,1733346644187,-500.0,0.00025205,7]
[344327481,1733346644196,-500.0,0.00025205,7]
[344327483,1733346644205,-500.0,0.00025205,7]
[344327485,1733346644215,-669.91,0.00025205,7]
[344327487,1733346644224,-500.0,0.00025205,7]
[344327489,1733346644236,-500.0,0.00025205,7]
[344327491,1733346644245,-2295.0,0.00025205,7]
[344327493,1733346644254,-937.42,0.00025205,7]
[344327495,1733346644263,-500.0,0.00025205,7]
[344327497,1733346644273,-534.73,0.00025205,7]
[344327499,1733346644282,-1741.07,0.00025205,7]
[344327501,1733346644292,-151.0,0.00025205,7]
[344327503,1733346644302,-151.0,0.00025205,7]
[344327505,1733346644311,-500.0,0.00025205,7]
[344327507,1733346644321,-707.94,0.00025205,7]
[344327509,1733346644330,-2674.54,0.00025205,7]
[344327511,1733346644339,-500.0,0.00025205,7]
[344327513,1733346644349,-500.0,0.00025205,7]
[344327515,1733346644359,-898.18,0.00025205,7]
[344327517,1733346644368,-500.0,0.00025205,7]
[344327519,1733346644377,-500.0,0.00025205,7]
[344327521,1733346644386,-500.0,0.00025205,7]
[344327523,1733346644395,-500.0,0.00025205,7]
[344327525,1733346644404,-729.85,0.00025205,7]
[344327527,1733346644413,-500.0,0.00025205,7]
[344327528,1733346644422,-936.29,0.00025205,7]
[344327529,1733346644432,-1935.84,0.00025205,7]
[344327530,1733346644441,-1644.69,0.00025205,7]
[344327531,1733346644451,-500.0,0.00025205,7]
[344327533,1733346644460,-865.86,0.00025205,7]
[344327535,1733346644470,-400.79387423,0.00025205,7]
[344327537,1733346644479,-500.0,0.00025205,7]
[344327539,1733346644491,-500.0,0.00025205,7]
[344327541,1733346644500,-509.73,0.00025205,7]
[344327543,1733346644510,-578.32,0.00025205,7]
[344327544,1733346644519,-500.0,0.00025205,7]
[344327545,1733346644530,-500.0,0.00025205,7]
[344327546,1733346644540,-500.0,0.00025205,7]
[344327547,1733346644550,-500.0,0.00025205,7]
[344327548,1733346644560,-500.0,0.00025205,7]
[344327549,1733346644569,-500.0,0.00025205,7]
[344327550,1733346644580,-151.0,0.00025205,7]
[344327551,1733346644590,-13170.42,0.00025205,7]
[344327552,1733346644600,-1521.1,0.00025205,7]
[344327553,1733346644610,-1000.0,0.00025221,2]
[344327554,1733346644620,-420.0,0.00025234,2]
[344327555,1733346644630,-500.0,0.00025273,2]
[344327556,1733346644640,-200.588,0.000253,2]
[344327557,1733346644649,-151.0,0.00025379,7]
[344327558,1733346644658,-151.0,0.00025379,7]
[344327559,1733346644668,-2664.7295931,0.00025379,2]
[344327560,1733346644678,-1548.62197702,0.00025478,2]
[344327561,1733346644688,-160.0,0.00025478,2]
[344327562,1733346644702,-160.0,0.00025478,2]
[344327563,1733346644712,-298.306005,0.00025479,7]
[344327564,1733346644722,-151.0,0.00025479,7]
[344327565,1733346644736,-514.424196,0.00025479,7]
[344327566,1733346644746,-514.424196,0.00025479,7]
[344327567,1733346644756,-186.83499,0.00025479,7]
[344327568,1733346644766,-500.0,0.00025479,7]
[344327569,1733346644776,-500.0,0.00025479,7]
[344327570,1733346644903,-631.77,0.00025479,7]
[344327571,1733346644913,-500.0,0.00025479,7]
[344327572,1733346644923,-151.0,0.00025479,7]
[344327573,1733346644932,-500.0,0.00025479,7]
[344327575,1733346644942,-500.0,0.00025479,7]
[344327576,1733346644952,-151.0,0.00025479,7]
[344327577,1733346644961,-151.0,0.00025479,7]
[344327578,1733346644971,-757.89,0.00025479,7]
[344327579,1733346644983,-500.0,0.00025479,7]
[344327580,1733346644993,-151.0,0.00025479,7]
[344327581,1733346645002,-151.0,0.00025479,7]
[344327582,1733346645012,-500.0,0.00025479,7]
[344327583,1733346645021,-500.0,0.00025479,7]
[344327584,1733346645031,-586.52,0.00025479,7]
[344327585,1733346645040,-500.0,0.00025479,7]
[344327586,1733346645049,-611.22,0.00025479,7]
[344327587,1733346645058,-500.0,0.00025479,7]
[344327588,1733346645067,-933.52,0.00025479,7]
[344327589,1733346645077,-894.4,0.00025479,7]
[344327590,1733346645086,-500.0,0.00025479,7]
[344327591,1733346645096,-500.0,0.00025479,7]
[344327592,1733346645105,-500.0,0.00025479,7]
[344327593,1733346645115,-525.48364883,0.00025479,7]
[344327594,1733346645125,-500.0,0.00025479,7]
[344327595,1733346645135,-500.0,0.00025479,7]
[344327596,1733346645145,-500.0,0.00025479,7]
[344327597,1733346645154,-151.0,0.00025479,7]
[344327598,1733346645164,-151.0,0.00025479,7]
[344327599,1733346645173,-151.0,0.00025479,7]
[344327600,1733346645184,-224.012245,0.00025479,7]
[344327601,1733346645193,-530.74,0.00025479,7]
[344327602,1733346645203,-155.075881,0.00025479,7]
[344327603,1733346645213,-155.075881,0.00025479,7]
[344327604,1733346645222,-500.0,0.00025479,7]
[344327605,1733346645239,-500.0,0.00025479,7]
[344327606,1733346645249,-543.99896345,0.00025479,7]
[344327607,1733346645259,-500.0,0.00025479,7]
[344327608,1733346645268,-500.0,0.00025479,7]
[344327609,1733346645278,-500.0,0.00025479,7]
[344327610,1733346645287,-619.85,0.00025479,7]
[344327611,1733346645297,-500.0,0.00025479,7]
[344327612,1733346645307,-151.0,0.00025479,7]
[344327613,1733346645316,-1534.56,0.00025479,7]
[344327614,1733346645326,-657.02,0.00025479,7]
[344327615,1733346645336,-391.43768,0.00025479,7]
[344327616,1733346645346,-391.43768,0.00025479,7]
[344327617,1733346645355,-560.397085,0.00025479,7]
[344327618,1733346645365,-391.43768,0.00025479,7]
[344327619,1733346645374,-391.43768,0.00025479,7]
[344327620,1733346645384,-560.397085,0.00025479,7]
[344327621,1733346645394,-500.0,0.00025479,7]
[344327622,1733346645403,-500.0,0.00025479,7]
[344327623,1733346645413,-500.0,0.00025479,7]
[344327624,1733346645423,-500.0,0.00025479,7]
[344327625,1733346645432,-819.96,0.00025479,7]
[344327626,1733346645441,-500.0,0.00025479,7]
[344327627,1733346645451,-553.14,0.00025479,7]
[344327628,1733346645461,-689.42,0.00025479,7]
[344327629,1733346645470,-500.0,0.00025479,7]
[344327630,1733346645480,-500.0,0.00025479,7]
[344327631,1733346645496,-500.0,0.00025479,7]
[344327632,1733346645505,-500.0,0.00025479,7]
[344327633,1733346645515,-500.0,0.00025479,7]
[344327634,1733346645524,-500.0,0.00025479,7]
[344327635,1733346645534,-500.0,0.00025479,7]
[344327636,1733346645544,-500.0,0.00025479,7]
[344327637,1733346645554,-500.0,0.00025479,7]
[344327638,1733346645563,-164.16054391,0.00025479,7]
[344327639,1733346645572,-500.0,0.00025479,7]
[344327640,1733346645582,-500.0,0.00025479,7]
[344327641,1733346645592,-500.0,0.00025479,7]
[344327642,1733346645601,-500.0,0.00025479,7]
[344327643,1733346645612,-500.0,0.00025479,7]
[344327644,1733346645621,-1059.594498,0.00025479,7]
[344327645,1733346645631,-500.0,0.00025479,7]
[344327646,1733346645640,-500.0,0.00025479,7]
[344327647,1733346645650,-1059.594498,0.00025479,7]
[344327648,1733346645660,-500.0,0.00025479,7]
[344327649,1733346645670,-1348.776728,0.00025479,7]
[344327650,1733346645680,-500.0,0.00025479,7]
[344327651,1733346645690,-1348.776728,0.00025479,7]
[344327652,1733346645702,-952.87,0.00025479,7]
[344327653,1733346645712,-500.0,0.00025479,7]
[344327654,1733346645721,-500.0,0.00025479,7]
[344327655,1733346645736,-500.0,0.00025479,7]
[344327656,1733346645746,-299.363235,0.00025479,7]
[344327657,1733346645756,-500.0,0.00025479,7]
[344327658,1733346645766,-299.363235,0.00025479,7]
[344327659,1733346645778,-299.363235,0.00025479,7]
[344327660,1733346645788,-299.363235,0.00025479,7]
[344327661,1733346645798,-500.0,0.00025479,7]
[344327662,1733346645808,-500.0,0.00025479,7]
[344327663,1733346645818,-500.0,0.00025479,7]
[344327664,1733346645827,-500.0,0.00025479,7]
[344327665,1733346645837,-500.0,0.00025479,7]
[344327666,1733346645847,-333.758566,0.00025479,7]
[344327667,1733346645856,-333.758566,0.00025479,7]
[344327668,1733346645867,-574.26,0.00025479,7]
[344327669,1733346645880,-500.0,0.00025479,7]
[344327670,1733346645889,-4805.61,0.00025479,7]
[344327671,1733346645899,-500.0,0.00025479,7]
[344327672,1733346645908,-500.0,0.00025479,7]
[344327673,1733346645918,-500.0,0.00025479,7]
[344327674,1733346645927,-1364.96,0.00025479,7]
[344327675,1733346645937,-500.0,0.00025479,7]
[344327676,1733346645947,-1957.68,0.00025479,7]
[344327677,1733346645956,-500.0,0.00025479,7]
[344327678,1733346645966,-500.0,0.00025479,7]
[344327679,1733346645975,-253.64124859,0.00025479,7]
[344327680,1733346645988,-3027.51,0.00025479,7]
[344327681,1733346645998,-500.0,0.00025479,7]
[344327683,1733346646008,-500.0,0.00025479,7]
[344327684,1733346646018,-500.0,0.00025479,7]
[344327685,1733346646027,-151.0,0.00025479,7]
[344327686,1733346646037,-695.26,0.00025479,7]
[344327687,1733346646047,-500.0,0.00025479,7]
[344327688,1733346646056,-553.80601779,0.00025479,7]
[344327689,1733346646066,-500.0,0.00025479,7]
[344327691,1733346646076,-500.0,0.00025479,7]
[344327693,1733346646085,-700.25,0.00025479,7]
[344327695,1733346646095,-1192.1,0.00025479,7]
[344327696,1733346646104,-500.0,0.00025479,7]
[344327697,1733346646114,-500.0,0.00025479,7]
[344327698,1733346646123,-500.0,0.00025479,7]
[344327700,1733346646133,-500.0,0.00025479,7]
[344327701,1733346646142,-500.0,0.00025479,7]
[344327702,1733346646152,-669.91,0.00025479,7]
[344327703,1733346646162,-500.0,0.00025479,7]
[344327704,1733346646172,-500.0,0.00025479,7]
[344327705,1733346646181,-2295.0,0.00025479,7]
[344327706,1733346646191,-937.42,0.00025479,7]
[344327709,1733346646201,-500.0,0.00025479,7]
[344327710,1733346646210,-534.73,0.00025479,7]
[344327711,1733346646219,-1741.07,0.00025479,7]
[344327712,1733346646228,-151.0,0.00025479,7]
[344327713,1733346646243,-151.0,0.00025479,7]
[344327714,1733346646253,-500.0,0.00025479,7]
[344327716,1733346646263,-707.94,0.00025479,7]
[344327718,1733346646274,-2674.54,0.00025479,7]
[344327719,1733346646284,-500.0,0.00025479,7]
[344327720,1733346646294,-500.0,0.00025479,7]
[344327721,1733346646305,-500.0,0.00025479,7]
[344327722,1733346646315,-500.0,0.00025479,7]
[344327724,1733346646324,-898.18,0.00025479,7]
[344327726,1733346646334,-500.0,0.00025479,7]
[344327727,1733346646343,-500.0,0.00025479,7]
[344327729,1733346646353,-729.85,0.00025479,7]
[344327731,1733346646362,-500.0,0.00025479,7]
[344327732,1733346646372,-936.29,0.00025479,7]
[344327733,1733346646381,-1935.84,0.00025479,7]
[344327734,1733346646391,-1644.69,0.00025479,7]
[344327735,1733346646400,-500.0,0.00025479,7]
[344327736,1733346646410,-865.86,0.00025479,7]
[344327737,1733346646419,-500.0,0.00025479,7]
[344327738,1733346646429,-500.0,0.00025479,7]
[344327740,1733346646438,-509.73,0.00025479,7]
[344327741,1733346646448,-578.32,0.00025479,7]
[344327742,1733346646457,-500.0,0.00025479,7]
[344327743,1733346646470,-500.0,0.00025479,7]
[344327744,1733346646481,-500.0,0.00025479,7]
[344327745,1733346646496,-500.0,0.00025479,7]
[344327747,1733346646505,-500.0,0.00025479,7]
[344327749,1733346646515,-13170.42,0.00025479,7]
[344327750,1733346646524,-153.799805,0.00025479,7]
[344327751,1733346646534,-1521.1,0.00025479,7]
[344327752,1733346646543,-312.056,0.00025503,10]
[344327753,1733346646553,-420.0,0.00025577,2]
[344327754,1733346646562,-3483.6618685,0.00025653,2]
[344327755,1733346646571,-160.0,0.00025752,2]
[344327756,1733346646581,-22468.71972141,0.00025753,2]
[344327757,1733346646591,-298.306005,0.00025753,7]
[344327758,1733346646601,-151.0,0.00025753,7]
[344327759,1733346646611,-151.0,0.00025753,7]
[344327760,1733346646621,-500.0,0.00025753,7]
[344327761,1733346646631,-386.60293285,0.00025753,7]
[344327762,1733346646641,-631.77,0.00025753,7]
[344327763,1733346646651,-500.0,0.00025753,7]
[344327764,1733346646660,-151.0,0.00025753,7]
[344327765,1733346646669,-500.0,0.00025753,7]
[344327766,1733346646679,-154.163264,0.00025753,7]
[344327767,1733346646688,-154.163264,0.00025753,7]
[344327768,1733346646701,-500.0,0.00025753,7]
[344327769,1733346646711,-151.0,0.00025753,7]
[344327770,1733346646720,-757.89,0.00025753,7]
[344327771,1733346646730,-500.0,0.00025753,7]
[344327772,1733346646745,-151.0,0.00025753,7]
[344327773,1733346646755,-500.0,0.00025753,7]
[344327774,1733346646765,-500.0,0.00025753,7]
[344327775,1733346646776,-586.52,0.00025753,7]
[344327776,1733346646787,-638.32191438,0.00025753,7]
[344327777,1733346646797,-611.22,0.00025753,7]
[344327778,1733346646806,-500.0,0.00025753,7]
[344327779,1733346646816,-933.52,0.00025753,7]
[344327780,1733346646826,-894.4,0.00025753,7]
[344327781,1733346646835,-500.0,0.00025753,7]
[344327782,1733346646845,-500.0,0.00025753,7]
[344327783,1733346646854,-500.0,0.00025753,7]
[344327784,1733346646864,-500.0,0.00025753,7]
[344327785,1733346646873,-500.0,0.00025753,7]
[344327786,1733346646883,-500.0,0.00025753,7]
[344327787,1733346646893,-151.0,0.00025753,7]
[344327788,1733346646903,-530.74,0.00025753,7]
[344327789,1733346646913,-155.075881,0.00025753,7]
[344327790,1733346646923,-155.075881,0.00025753,7]
[344327791,1733346646933,-500.0,0.00025753,7]
[344327792,1733346646943,-573.67454008,0.00025753,7]
[344327793,1733346646952,-483.37504519,0.00025753,7]
[344327794,1733346646962,-500.0,0.00025753,7]
[344327795,1733346646972,-619.85,0.00025753,7]
[344327796,1733346646987,-500.0,0.00025753,7]
[344327797,1733346646997,-151.0,0.00025753,7]
[344327798,1733346647008,-1534.56,0.00025753,7]
[344327799,1733346647018,-657.02,0.00025753,7]
[344327800,1733346647028,-391.43768,0.00025753,7]
[344327801,1733346647038,-560.397085,0.00025753,7]
[344327802,1733346647047,-391.43768,0.00025753,7]
[344327803,1733346647057,-560.397085,0.00025753,7]
[344327804,1733346647067,-500.0,0.00025753,7]
[344327805,1733346647076,-500.0,0.00025753,7]
[344327806,1733346647215,-500.0,0.00025753,7]
[344327807,1733346647227,-819.96,0.00025753,7]
[344327808,1733346647241,-500.0,0.00025753,7]
[344327809,1733346647251,-530.40664275,0.00025753,7]
[344327810,1733346647261,-553.14,0.00025753,7]
[344327811,1733346647271,-689.42,0.00025753,7]
[344327812,1733346647282,-500.0,0.00025753,7]
[344327813,1733346647291,-500.0,0.00025753,7]
[344327814,1733346647302,-500.0,0.00025753,7]
[344327815,1733346647311,-500.0,0.00025753,7]
[344327816,1733346647321,-500.0,0.00025753,7]
[344327817,1733346647330,-500.0,0.00025753,7]
[344327818,1733346647340,-500.0,0.00025753,7]
[344327819,1733346647350,-500.0,0.00025753,7]
[344327820,1733346647360,-500.0,0.00025753,7]
[344327821,1733346647370,-500.0,0.00025753,7]
[344327822,1733346647379,-500.0,0.00025753,7]
[344327823,1733346647388,-500.0,0.00025753,7]
[344327824,1733346647399,-500.0,0.00025753,7]
[344327825,1733346647408,-1059.594498,0.00025753,7]
[344327826,1733346647417,-500.0,0.00025753,7]
[344327827,1733346647427,-1059.594498,0.00025753,7]
[344327828,1733346647436,-500.0,0.00025753,7]
[344327829,1733346647446,-1348.776728,0.00025753,7]
[344327830,1733346647456,-500.0,0.00025753,7]
[344327831,1733346647466,-1348.776728,0.00025753,7]
[344327832,1733346647476,-952.87,0.00025753,7]
[344327833,1733346647489,-500.0,0.00025753,7]
[344327834,1733346647499,-500.0,0.00025753,7]
[344327835,1733346647508,-500.0,0.00025753,7]
[344327836,1733346647518,-299.363235,0.00025753,7]
[344327837,1733346647527,-299.363235,0.00025753,7]
[344327838,1733346647537,-500.0,0.00025753,7]
[344327839,1733346647547,-500.0,0.00025753,7]
[344327840,1733346647557,-500.0,0.00025753,7]
[344327841,1733346647566,-500.0,0.00025753,7]
[344327842,1733346647576,-500.0,0.00025753,7]
[344327843,1733346647586,-333.758566,0.00025753,7]
[344327844,1733346647596,-333.758566,0.00025753,7]
[344327845,1733346647606,-574.26,0.00025753,7]
[344327846,1733346647616,-4805.61,0.00025753,7]
[344327847,1733346647626,-500.0,0.00025753,7]
[344327848,1733346647635,-500.0,0.00025753,7]
[344327849,1733346647645,-606.68,0.00025753,7]
[344327850,1733346647655,-1364.96,0.00025753,7]
[344327851,1733346647664,-500.0,0.00025753,7]
[344327852,1733346647674,-1957.68,0.00025753,7]
[344327853,1733346647684,-500.0,0.00025753,7]
[344327854,1733346647695,-500.0,0.00025753,7]
[344327855,1733346647707,-3027.51,0.00025753,7]
[344327856,1733346647716,-500.0,0.00025753,7]
[344327857,1733346647726,-500.0,0.00025753,7]
[344327858,1733346647739,-500.0,0.00025753,7]
[344327859,1733346647748,-151.0,0.00025753,7]
[344327860,1733346647758,-695.26,0.00025753,7]
[344327861,1733346647768,-500.0,0.00025753,7]
[344327862,1733346647778,-500.0,0.00025753,7]
[344327863,1733346647789,-700.25,0.00025753,7]
[344327864,1733346647799,-1192.1,0.00025753,7]
[344327865,1733346647808,-500.0,0.00025753,7]
[344327866,1733346647818,-500.0,0.00025753,7]
[344327867,1733346647827,-500.0,0.00025753,7]
[344327868,1733346647838,-569.43357761,0.00025753,7]
[344327869,1733346647848,-424.33985205,0.00025753,7]
[344327870,1733346647858,-669.91,0.00025753,7]
[344327871,1733346647868,-500.0,0.00025753,7]
[344327872,1733346647877,-500.0,0.00025753,7]
[344327873,1733346647887,-2295.0,0.00025753,7]
[344327874,1733346647897,-937.42,0.00025753,7]
[344327875,1733346647906,-534.73,0.00025753,7]
[344327876,1733346647916,-1741.07,0.00025753,7]
[344327877,1733346647925,-151.0,0.00025753,7]
[344327878,1733346647935,-151.0,0.00025753,7]
[344327879,1733346647945,-500.0,0.00025753,7]
[344327880,1733346647955,-707.94,0.00025753,7]
[344327881,1733346647964,-2674.54,0.00025753,7]
[344327882,1733346647974,-500.0,0.00025753,7]
[344327883,1733346647985,-500.0,0.00025753,7]
[344327884,1733346647995,-500.0,0.00025753,7]
[344327885,1733346648004,-500.0,0.00025753,7]
[344327886,1733346648014,-898.18,0.00025753,7]
[344327887,1733346648024,-500.0,0.00025753,7]
[344327888,1733346648033,-500.0,0.00025753,7]
[344327889,1733346648043,-729.85,0.00025753,7]
[344327890,1733346648052,-500.0,0.00025753,7]
[344327891,1733346648062,-936.29,0.00025753,7]
[344327892,1733346648072,-1935.84,0.00025753,7]
[344327893,1733346648082,-1644.69,0.00025753,7]
[344327894,1733346648091,-500.0,0.00025753,7]
[344327895,1733346648101,-865.86,0.00025753,7]
[344327896,1733346648111,-500.0,0.00025753,7]
[344327897,1733346648121,-500.0,0.00025753,7]
[344327898,1733346648132,-509.73,0.00025753,7]
[344327899,1733346648142,-578.32,0.00025753,7]
[344327900,1733346648152,-500.0,0.00025753,7]
[344327901,1733346648161,-500.0,0.00025753,7]
[344327902,1733346648171,-251.11185992,0.00025753,7]
[344327903,1733346648180,-500.0,0.00025753,7]
[344327904,1733346648190,-500.0,0.00025753,7]
[344327905,1733346648200,-13170.42,0.00025753,7]
[344327906,1733346648209,-1521.1,0.00025753,7]
[344327907,1733346648219,-1000.0,0.00025821,2]
[344327908,1733346648228,-156.14813731,0.0002584,2]